bitfinex-derivatives/quotes_SOLF0:USTF0_20260123
["timestamp","ask_amount","ask_price","bid_price","bid_amount"]
[1769160232357,0.05467346,127.17,127.13,10.28370459]
[1769160233365,0.05467346,127.17,127.14,0.0507425]
[1769160233966,5.39387389,127.2,127.14,12.45144999]
[1769160236761,3.27617099,127.2,127.14,12.45144999]
[1769160236961,3.27617099,127.2,127.15,3.19560459]
[1769160237166,3.27617099,127.2,127.15,10.28260459]
[1769160239772,12.47727389,127.22,127.16,3.19560459]
[1769160240564,3.27617099,127.21,127.18,0.05164385]
[1769160243767,3.27617099,127.21,127.16,3.19560459]
[1769160244574,3.27617099,127.21,127.16,10.28190459]
[1769160244769,3.27617099,127.21,127.16,3.19560459]
[1769160245872,3.27617099,127.21,127.17,7.0859]
[1769160247863,314.38149979,127.23,127.17,7.0859]
[1769160248071,314.38149979,127.23,127.17,3.24653538]
[1769160248274,3.41205828,127.23,127.18,5.36423828]
[1769160248473,2.1177029,127.24,127.18,5.36423828]
[1769160248674,2.1177029,127.24,127.19,3.24653538]
[1769160248874,3.41205828,127.25,127.19,3.24653538]
[1769160249875,3.41205828,127.25,127.21,7.0835]
[1769160253677,3.41205828,127.25,127.19,10.33093538]
[1769160253976,3.41205828,127.25,127.19,3.24653538]
[1769160254178,3.41205828,127.25,127.2,7.0842]
[1769160256781,3.41205828,127.25,127.21,7.0836]
[1769160258379,3.41205828,127.27,127.22,7.0831]
[1769160258789,2.11072246,127.26,127.21,3.24653538]
[1769160259091,2.1612107,127.26,127.21,10.33013538]
[1769160259993,2.1612107,127.26,127.22,0.05697057]
[1769160261095,0.05048824,127.26,127.22,0.05697057]
[1769160261693,0.05048824,127.26,127.22,3.30350595]
[1769160261889,3.41205828,127.29,127.22,3.30350595]
[1769160262896,3.41205828,127.29,127.24,7.082]
[1769160263787,3.41205828,127.29,127.25,0.0534831]
[1769160265495,3.41205828,127.29,127.22,7.0826]
[1769160265702,3.41205828,127.29,127.22,10.32913538]
[1769160265890,3.41205828,127.27,127.22,10.32913538]
[1769160266797,0.05730976,127.26,127.23,0.05296765]
[1769160267398,0.05730976,127.26,127.23,7.13546765]
[1769160273599,0.05730976,127.26,127.23,0.05296765]
[1769160287412,0.05730976,127.26,127.23,10.49858449]
[1769160287623,3.45120154,127.28,127.23,10.49858449]
[1769160290319,3.45120154,127.28,127.23,3.41608449]
[1769160300528,3.45120154,127.3,127.24,3.36311684]
[1769160301330,9.43612456,127.29,127.26,0.05007956]
[1769160301517,3.45120154,127.29,127.26,0.05007956]
[1769160303026,3.17435815,127.31,127.26,12.28622993]
[1769160304232,3.17435815,127.33,127.27,10.12472791]
[1769160304527,5.97228958,127.32,127.27,10.12472791]
[1769160305134,5.97228958,127.32,127.28,0.05288222]
[1769160305936,3.17435815,127.33,127.28,0.05288222]
[1769160306146,9.16548374,127.32,127.28,0.05288222]
[1769160306434,3.1945367,127.32,127.28,0.05288222]
[1769160307236,5.30525916,127.32,127.28,0.05288222]
[1769160307442,5.30525916,127.3,127.25,10.24876981]
[1769160314939,3.1945367,127.29,127.23,12.36049227]
[1769160315541,0.05446687,127.27,127.23,10.24976981]
[1769160318546,3.24900357,127.27,127.21,10.25086981]
[1769160319243,3.1945367,127.26,127.21,3.16766981]
[1769160319945,3.1945367,127.26,127.19,3.16766981]
[1769160320544,5.30454917,127.25,127.19,3.16766981]
[1769160321936,5.30454917,127.25,127.19,10.25236981]
[1769160322337,3.1945367,127.24,127.19,10.25236981]
[1769160322539,3.1945367,127.24,127.19,3.16766981]
[1769160323445,3.1945367,127.24,127.18,207.10588408]
[1769160323748,3.1945367,127.22,127.15,10.25426981]
[1769160323935,3.1945367,127.22,127.16,3.16766981]
[1769160326438,10.2777367,127.22,127.16,3.16766981]
[1769160326639,2.11001247,127.21,127.16,3.16766981]
[1769160326840,5.30454917,127.21,127.16,3.16766981]
[1769160327237,5.30454917,127.21,127.14,5.27768228]
[1769160327748,3.1945367,127.2,127.14,3.16766981]
[1769160330149,5.30454917,127.2,127.14,3.16766981]
[1769160330847,0.05768644,127.18,127.14,3.16766981]
[1769160331041,0.05768644,127.18,127.16,0.04996977]
[1769160335949,0.05768644,127.18,127.14,3.16766981]
[1769160337051,3.46176665,127.18,127.13,2.11001247]
[1769160337244,3.46176665,127.18,127.13,5.49548562]
[1769160341761,3.46176665,127.18,127.13,3.38547315]
[1769160342758,3.40408021,127.17,127.11,3.38547315]
[1769160343062,3.40408021,127.16,127.11,3.38547315]
[1769160343561,0.05121251,127.15,127.11,3.38547315]
[1769160344255,0.05121251,127.15,127.09,7.0899]
[1769160344256,0.05121251,127.15,127.09,3.38547315]
[1769160344451,3.45529272,127.15,127.09,3.38547315]
[1769160345762,3.45529272,127.15,127.1,2.11001247]
[1769160345964,3.45529272,127.15,127.1,5.49548562]
[1769160347466,0.05121251,127.15,127.11,3.38547315]
[1769160350458,0.05121251,127.15,127.1,2.11001247]
[1769160350459,3.40408021,127.19,127.13,3.38547315]
[1769160351266,5.51409268,127.18,127.13,3.38547315]
[1769160351664,10.49008021,127.17,127.11,3.38547315]
[1769160351966,3.40408021,127.16,127.11,3.38547315]
[1769160362567,3.40408021,127.16,127.11,10.47467315]
[1769160370980,3.40408021,127.16,127.1,2.11001247]
[1769160370981,3.15976836,127.18,127.12,10.34857441]
[1769160371781,0.05179273,127.16,127.12,10.34857441]
[1769160372581,0.05179273,127.16,127.13,0.04986711]
[1769160376582,5.26978083,127.19,127.14,3.25987441]
[1769160376784,3.15976836,127.21,127.15,3.25987441]
[1769160377888,3.15976836,127.21,127.17,0.05346428]
[1769160378982,5.2723927,127.21,127.17,0.05346428]
[1769160380582,3.15976836,127.2,127.13,10.34767441]
[1769160380787,5.2723927,127.19,127.13,10.34767441]
[1769160380988,3.15976836,127.18,127.13,10.34767441]
[1769160383184,2.11262434,127.19,127.11,10.34867441]
[1769160383185,5.2723927,127.17,127.11,10.34867441]
[1769160388499,3.15976836,127.16,127.11,3.25987441]
[1769160388700,3.15976836,127.16,127.09,10.34977441]
[1769160388992,3.15976836,127.16,127.1,3.25987441]
[1769160389495,3.15976836,127.11,127.05,7.0922]
[1769160389894,3.15976836,127.11,127.05,10.35207441]
[1769160390384,3.15976836,127.11,127.05,3.25987441]
[1769160391695,3.15976836,127.09,127.02,3.25987441]
[1769160391896,5.34436485,127.08,127.02,3.25987441]
[1769160392300,3.23174051,127.09,127.03,3.24007789]
[1769160393495,5.34436485,127.08,127.01,5.35270223]
[1769160393992,5.34436485,127.08,127.02,3.24007789]
[1769160395288,3.23174051,127.07,127.01,2.11262434]
[1769160395693,3.28216759,127.06,127.0,10.33527789]
[1769160396303,3.28216759,127.06,127.0,12.44790223]
[1769160397289,3.28216759,127.06,127.0,10.33527789]
[1769160397496,3.28216759,127.06,127.02,2.11262434]
[1769160404606,3.28216759,127.06,127.0,3.24007789]
[1769160404910,3.28216759,127.06,127.01,2.11262434]
[1769160411022,3.28216759,127.06,127.02,2.11262434]
[1769160412214,3.28216759,127.06,127.01,2.11262434]
[1769160414119,0.05042708,127.06,127.02,3.24007789]
[1769160421414,0.05042708,127.06,127.02,5.35270223]
[1769160421820,0.05042708,127.06,127.03,5.50003117]
[1769160422018,3.22727699,127.1,127.04,2.11262434]
[1769160422924,10.31777699,127.09,127.04,2.11262434]
[1769160423321,10.31777699,127.09,127.06,0.05917764]
[1769160426729,10.31777699,127.09,127.03,5.50003117]
[1769160426925,10.36825258,127.09,127.03,5.50003117]
[1769160428131,10.36825258,127.09,127.04,3.20659992]
[1769160428526,3.27775258,127.09,127.04,3.20659992]
[1769160430628,3.27775258,127.09,127.04,5.31922426]
[1769160432432,3.27775258,127.09,127.04,3.20659992]
[1769160437441,0.05047559,127.09,127.05,3.20659992]
[1769160438140,0.05047559,127.09,127.05,5.31922426]
[1769160438640,0.05047559,127.09,127.05,12.41182426]
[1769160438836,0.05047559,127.09,127.05,10.29919992]
[1769160439041,0.05047559,127.09,127.05,3.20659992]
[1769160441043,0.05047559,127.09,127.05,10.29909992]
[1769160442144,0.05047559,127.09,127.06,3.20659992]
[1769160442345,3.48201302,127.11,127.06,10.29849992]
[1769160442547,3.48201302,127.11,127.06,10.353802]
[1769160442747,3.48201302,127.11,127.06,12.46984546]
[1769160443351,7.28380672,127.15,127.06,12.46984546]
[1769160443352,3.48201302,127.13,127.08,5.32264338]
[1769160444144,3.48201302,127.13,127.09,0.05580624]
[1769160444649,3.48201302,127.11,127.06,3.20659992]
[1769160446039,3.48201302,127.11,127.06,10.29859992]
[1769160446440,3.48201302,127.11,127.06,12.41464338]
[1769160447538,12.68625648,127.13,127.07,3.20659992]
[1769160447741,10.57021302,127.13,127.07,3.20659992]
[1769160448151,3.48201302,127.13,127.07,12.41414338]
[1769160453057,0.05053911,127.11,127.07,12.41414338]
[1769160458057,0.05053911,127.11,127.08,2.11604346]
[1769160458658,0.05053911,127.11,127.07,5.32264338]
[1769160459465,3.49056978,127.11,127.06,7.092]
[1769160459758,3.49056978,127.11,127.05,5.37209943]
[1769160459959,3.44003067,127.11,127.05,5.37209943]
[1769160460964,0.05510407,127.09,127.05,5.37209943]
[1769160462164,0.05510407,127.09,127.06,3.25605597]
[1769160462365,10.52813067,127.14,127.08,3.25605597]
[1769160462560,5.96945455,127.13,127.08,3.25605597]
[1769160463276,5.96945455,127.13,127.09,5.37209943]
[1769160463469,3.44003067,127.14,127.09,5.37209943]
[1769160463775,3.44003067,127.14,127.09,5.42488137]
[1769160469681,3.44003067,127.14,127.1,2.11604346]
[1769160470181,9.53050615,127.15,127.1,5.37209943]
[1769160470388,5.95722392,127.14,127.1,5.37209943]
[1769160472690,5.95722392,127.14,127.1,3.25605597]
[1769160480190,5.95722392,127.14,127.09,2.1688254]
[1769160480191,5.95722392,127.14,127.11,5.37209943]
[1769160480489,313.95473622,127.17,127.11,5.37209943]
[1769160480678,5.9620498,127.16,127.11,5.37209943]
[1769160480880,5.9620498,127.15,127.11,5.37209943]
[1769160481080,313.95473622,127.17,127.11,5.37209943]
[1769160481392,9.34759154,127.16,127.12,0.05293235]
[1769160481587,5.90756087,127.15,127.12,0.05293235]
[1769160483489,3.44003067,127.16,127.12,0.05293235]
[1769160484290,3.44003067,127.16,127.12,7.14153235]
[1769160484594,314.00921406,127.17,127.12,12.74584012]
[1769160485395,3.49450851,127.17,127.12,12.74584012]
[1769160487290,0.05271526,127.16,127.12,12.74584012]
[1769160488297,0.05271526,127.16,127.12,10.62979666]
[1769160488691,3.25124156,127.16,127.12,0.05293235]
[1769160501410,3.25124156,127.16,127.11,2.11386565]
[1769160506607,3.1985263,127.14,127.09,2.11386565]
[1769160507405,0.05309184,127.13,127.09,2.11386565]
[1769160518215,0.05309184,127.13,127.08,5.51320018]
[1769160519419,0.05309184,127.13,127.09,2.11386565]
[1769160520110,3.50711728,127.12,127.08,6.565e-05]
[1769160520318,3.50711728,127.12,127.06,3.22759492]
[1769160520512,3.50711728,127.12,127.06,5.34146057]
[1769160521108,0.06023536,127.1,127.06,5.34146057]
[1769160521511,3.56735264,127.1,127.06,5.34146057]
[1769160521718,3.56735264,127.1,127.05,2.11386565]
[1769160525119,3.56735264,127.1,127.05,5.34146057]
[1769160530426,3.56735264,127.1,127.06,2.11386565]
[1769160533922,3.56735264,127.1,127.05,5.34146057]
[1769160536223,3.56735264,127.1,127.06,3.22759492]
[1769160536528,10.59581728,127.13,127.08,5.34146057]
[1769160537721,10.59581728,127.13,127.09,2.17152895]
[1769160541427,10.59471728,127.15,127.09,5.39912387]
[1769160541630,3.50711728,127.15,127.09,5.39912387]
[1769160542333,3.50711728,127.15,127.1,2.11386565]
[1769160543932,3.50121252,127.14,127.1,2.11386565]
[1769160546828,7.0873,127.15,127.1,5.36815749]
[1769160547033,10.32019178,127.15,127.1,5.36815749]
[1769160547536,3.23289178,127.15,127.11,2.11386565]
[1769160548425,3.23289178,127.15,127.12,0.0551013]
[1769160560845,3.23289178,127.15,127.1,3.25429184]
[1769160562448,3.23289178,127.15,127.09,9.20490345]
[1769160562648,3.23289178,127.14,127.08,5.36889529]
[1769160563956,3.23289178,127.14,127.08,12.45979529]
[1769160565856,3.23289178,127.14,127.08,10.34519184]
[1769160566054,3.23289178,127.14,127.08,12.45979529]
[1769160568357,3.23289178,127.14,127.08,10.34519184]
[1769160568556,3.23289178,127.14,127.08,12.45979529]
[1769160569961,0.05959406,127.12,127.08,12.45979529]
[1769160571859,312.57995986,127.17,127.12,3.50094278]
[1769160573262,312.57995986,127.17,127.13,0.05209975]
[1769160578468,3.43201575,127.16,127.11,2.11460345]
[1769160579661,3.43201575,127.16,127.11,5.61554623]
[1769160585168,3.43201575,127.14,127.09,3.50094278]
[1769160591369,3.43201575,127.14,127.1,2.11460345]
[1769160596578,2.11460345,127.16,127.1,5.61554623]
[1769160596579,3.43201575,127.16,127.1,5.61554623]
[1769160596779,5.87395027,127.15,127.1,5.61554623]
[1769160596978,5.87395027,127.14,127.1,5.61554623]
[1769160597281,3.43201575,127.16,127.1,5.61554623]
[1769160597483,5.87395604,127.15,127.1,5.61554623]
[1769160598182,5.87395604,127.15,127.11,3.50094278]
[1769160600088,5.87395604,127.15,127.11,5.61554623]
[1769160600381,309.14794411,127.17,127.13,3.50094278]
[1769160600587,309.14794411,127.17,127.13,5.61554623]
[1769160601386,0.05727665,127.16,127.13,5.61554623]
[1769160601581,10.51661575,127.2,127.14,5.66867366]
[1769160601881,5.85727553,127.19,127.16,5.52249687]
[1769160602080,3.33671169,127.21,127.16,5.52249687]
[1769160602280,5.85580311,127.2,127.16,5.52249687]
[1769160603080,5.85580311,127.2,127.17,0.05799172]
[1769160603285,9.1925148,127.2,127.17,0.05799172]
[1769160603477,3.33671169,127.2,127.17,0.05799172]
[1769160603886,3.33671169,127.2,127.14,5.52249687]
[1769160606979,3.33671169,127.2,127.15,2.11460345]
[1769160607181,3.33671169,127.2,127.15,5.28853085]
[1769160607880,3.33671169,127.2,127.15,12.37533085]
[1769160608481,3.16012341,127.22,127.17,2.11460345]
[1769160610681,3.16012341,127.22,127.16,5.28853085]
[1769160610988,3.16012341,127.21,127.15,5.28853085]
[1769160615288,10.24392341,127.21,127.15,5.28853085]
[1769160616192,3.16012341,127.2,127.15,5.28853085]
[1769160617591,3.16012341,127.19,127.14,2.11460345]
[1769160617891,3.16012341,127.19,127.13,5.28853085]
[1769160619892,10.24502341,127.19,127.13,5.28853085]
[1769160620093,10.24502341,127.19,127.13,3.1739274]
[1769160620683,10.24502341,127.19,127.13,5.28853085]
[1769160620893,10.24502341,127.19,127.13,5.28722963]
[1769160626496,3.16012341,127.18,127.13,5.28722963]
[1769160626798,3.16012341,127.17,127.12,2.11330223]
[1769160628092,3.16012341,127.17,127.12,5.28722963]
[1769160630504,3.16012341,127.16,127.11,2.11330223]
[1769160631703,3.16012341,127.16,127.11,5.28722963]
[1769160636709,3.16012341,127.16,127.12,2.11330223]
[1769160637004,3.16012341,127.16,127.13,2.11330223]
[1769160638303,3.16012341,127.16,127.12,2.11330223]
[1769160640308,10.43841541,127.18,127.12,5.2747075]
[1769160640506,10.43841541,127.18,127.13,2.11330223]
[1769160640701,3.35291541,127.17,127.13,2.11330223]
[1769160645208,3.35291541,127.17,127.12,3.16140527]
[1769160645401,3.35291541,127.17,127.13,2.11330223]
[1769160663935,10.43891541,127.17,127.13,2.11330223]
[1769160666940,5.82427776,127.16,127.13,2.11330223]
[1769160667131,10.43891541,127.17,127.13,2.11330223]
[1769160667736,10.43891541,127.17,127.14,0.05103836]
[1769160667941,0.05668472,127.16,127.14,0.05103836]
[1769160669137,3.35291541,127.17,127.14,0.05103836]
[1769160669830,3.20668757,127.18,127.14,0.05103836]
[1769160670032,5.82392433,127.17,127.14,0.05103836]
[1769160672138,9.0306119,127.17,127.14,0.05103836]
[1769160672343,5.8255313,127.16,127.13,3.29023414]
[1769160673446,5.8255313,127.16,127.13,5.40353637]
[1769160674146,3.20668757,127.17,127.13,5.40353637]
[1769160676548,5.82761905,127.16,127.13,5.40353637]
[1769160680546,9.03430662,127.16,127.1,10.37973414]
[1769160680760,3.20668757,127.16,127.12,2.11330223]
[1769160680954,3.20668757,127.16,127.12,2.11355516]
[1769160683353,3.20668757,127.16,127.12,5.4037893]
[1769160683560,10.29208757,127.18,127.12,5.4037893]
[1769160683858,5.82586428,127.17,127.12,5.4037893]
[1769160685459,10.29208757,127.18,127.12,5.4037893]
[1769160685460,9.03255185,127.16,127.12,5.4037893]
[1769160685759,3.20668757,127.16,127.12,5.4037893]
[1769160690457,3.20668757,127.16,127.12,2.11355516]
[1769160690860,3.20668757,127.16,127.1,5.4037893]
[1769160691253,3.20668757,127.14,127.1,2.11355516]
[1769160691753,3.1284283,127.16,127.1,5.4037893]
[1769160691960,5.82960882,127.15,127.1,5.4037893]
[1769160692356,5.82960882,127.15,127.11,5.35950746]
[1769160692555,3.1284283,127.16,127.11,5.35950746]
[1769160694866,5.82783689,127.15,127.11,5.35950746]
[1769160695062,8.95626519,127.15,127.11,5.35950746]
[1769160695364,3.1284283,127.15,127.11,5.35950746]
[1769160696769,3.1284283,127.15,127.12,2.11355516]
[1769160698871,3.1284283,127.15,127.11,5.35950746]
[1769160700973,3.1284283,127.15,127.11,3.2459523]
[1769160701275,3.1284283,127.15,127.11,5.35950746]
[1769160706295,3.1284283,127.15,127.1,2.11355516]
[1769160706481,3.1284283,127.13,127.09,2.11355516]
[1769160707878,3.1284283,127.13,127.09,9.20385516]
[1769160709193,3.1284283,127.13,127.1,2.11355516]
[1769160713796,3.1284283,127.17,127.11,3.2459523]
[1769160714097,3.1284283,127.17,127.14,2.11355516]
[1769160714286,3.1284283,127.17,127.12,5.35950746]
[1769160714691,3.1284283,127.17,127.12,2.11355516]
[1769160716685,3.1284283,127.17,127.1,10.3356523]
[1769160716686,3.1284283,127.17,127.11,2.11355516]
[1769160716888,3.1284283,127.15,127.08,10.3364523]
[1769160717100,3.1284283,127.15,127.1,2.11355516]
[1769160720499,3.1284283,127.15,127.1,5.35950746]
[1769160721304,3.1284283,127.15,127.12,2.11355516]
[1769160721686,3.18129179,127.15,127.12,2.16627869]
[1769160724409,3.23307781,127.19,127.14,5.4715399]
[1769160724696,5.83380028,127.18,127.15,2.11355516]
[1769160724903,9.06687809,127.18,127.15,2.11355516]
[1769160725205,3.23307781,127.18,127.14,2.11355516]
[1769160725695,3.23307781,127.18,127.15,0.0579618]
[1769160727298,3.23307781,127.18,127.15,2.17151696]
[1769160730801,3.23307781,127.18,127.15,0.0579618]
[1769160731107,3.23307781,127.18,127.15,2.17151696]
[1769160731296,3.23307781,127.18,127.15,0.0579618]
[1769160733197,3.23307781,127.18,127.13,2.11355516]
[1769160734104,3.23307781,127.18,127.1,2.11355516]
[1769160734105,3.1175835,127.16,127.1,2.11355516]
[1769160735206,3.1175835,127.16,127.09,2.11355516]
[1769160735707,3.1175835,127.16,127.09,5.21131078]
[1769160736306,3.1175835,127.15,127.1,2.11355516]
[1769160738010,3.1175835,127.14,127.07,3.09775562]
[1769160738211,3.1175835,127.14,127.09,2.11355516]
[1769160738708,3.1175835,127.13,127.07,3.09775562]
[1769160739008,3.1175835,127.13,127.07,5.21131078]
[1769160739399,3.1175835,127.13,127.08,2.11355516]
[1769160739913,3.1175835,127.12,127.05,10.19075562]
[1769160740111,3.1175835,127.12,127.07,2.11355516]
[1769160740304,3.1175835,127.12,127.06,2.11355516]
[1769160741412,3.1175835,127.12,127.07,2.11355516]
[1769160742913,3.1175835,127.12,127.07,2.11555467]
[1769160743607,3.1175835,127.11,127.05,3.09775562]
[1769160743813,3.1175835,127.11,127.05,5.21331029]
[1769160744501,3.16890958,127.09,127.04,2.11555467]
[1769160744707,3.16890958,127.09,127.03,5.21331029]
[1769160744911,3.1175835,127.09,127.04,2.11555467]
[1769160745313,10.2088835,127.09,127.04,2.11555467]
[1769160745814,0.05956691,127.08,127.05,0.05342595]
[1769160752118,0.05956691,127.08,127.05,2.16898062]
[1769160753318,0.05956691,127.08,127.05,8.062e-05]
[1769160754019,0.05956691,127.08,127.04,2.11555467]
[1769160755521,0.05956691,127.08,127.03,3.09775562]
[1769160755721,7.15136691,127.08,127.03,3.09775562]
[1769160756021,7.15136691,127.08,127.04,2.11555467]
[1769160756420,3.05985395,127.07,127.03,2.11555467]
[1769160758019,3.05985395,127.07,127.03,5.30349195]
[1769160758220,3.05985395,127.07,127.04,2.11555467]
[1769160760519,3.05985395,127.07,127.04,2.16751391]
[1769160760725,7.15136691,127.08,127.04,2.16751391]
[1769160761316,3.05985395,127.09,127.06,2.11555467]
[1769160761518,3.05985395,127.13,127.08,2.11555467]
[1769160761824,3.05985395,127.13,127.09,5.467e-05]
[1769160762216,3.05985395,127.13,127.1,2.11555467]
[1769160762420,7.0887,127.14,127.08,3.18793728]
[1769160762421,7.0887,127.14,127.11,5.467e-05]
[1769160762618,0.05997958,127.13,127.11,5.467e-05]
[1769160762819,3.05985395,127.15,127.11,5.467e-05]
[1769160763622,10.14775395,127.15,127.11,5.467e-05]
[1769160764326,10.14775395,127.15,127.1,2.16739193]
[1769160765720,3.05985395,127.14,127.1,2.16739193]
[1769160775836,3.05985395,127.16,127.11,5.30349195]
[1769160776034,3.05985395,127.16,127.12,2.11555467]
[1769160776728,3.05985395,127.16,127.13,0.06061443]
[1769160777638,10.14715395,127.16,127.13,0.06061443]
[1769160778438,10.14715395,127.16,127.11,5.30349195]
[1769160778439,7.0873,127.16,127.11,5.30349195]
[1769160779037,10.14715395,127.16,127.11,5.30349195]
[1769160780741,3.05985395,127.16,127.11,5.30349195]
[1769160784940,3.05985395,127.16,127.11,12.39349195]
[1769160787243,3.05985395,127.16,127.12,10.5094083]
[1769160788135,3.05985395,127.16,127.12,12.62496297]
[1769160789439,3.05985395,127.16,127.1,5.53576297]
[1769160789631,3.05985395,127.16,127.11,2.11555467]
[1769160789830,3.44133943,127.18,127.12,12.62516297]
[1769160793442,3.44133943,127.19,127.14,5.53576297]
[1769160793642,3.44133943,127.19,127.14,3.4202083]
[1769160799647,3.44133943,127.18,127.14,3.4202083]
[1769160800646,3.44133943,127.17,127.11,9.20505467]
[1769160800839,3.44133943,127.17,127.11,12.62526297]
[1769160801041,3.44133943,127.16,127.1,2.11555467]
[1769160801343,3.49143977,127.15,127.09,5.53576297]
[1769160802047,3.49143977,127.15,127.1,3.4202083]
[1769160803943,3.49143977,127.15,127.1,12.62521823]
[1769160805051,3.49143977,127.15,127.09,3.4202083]
[1769160805244,3.44133943,127.14,127.09,3.4202083]
[1769160806042,0.05850967,127.13,127.1,3.4701465]
[1769160809453,0.05850967,127.13,127.1,5.58465643]
[1769160809654,3.44133943,127.16,127.1,5.58465643]
[1769160809954,5.83699245,127.15,127.1,5.58465643]
[1769160811352,0.05511143,127.14,127.1,5.58465643]
[1769160813460,0.05511143,127.14,127.1,3.4701465]
[1769160816258,0.05511143,127.14,127.11,5.3656358]
[1769160817456,3.36293586,127.17,127.12,3.25112587]
[1769160818852,3.36293586,127.17,127.13,0.05860406]
[1769160819054,5.84349964,127.16,127.13,0.05860406]
[1769160819559,10.44963586,127.17,127.13,0.05860406]
[1769160819759,5.84359101,127.16,127.13,0.05860406]
[1769160820349,9.20652687,127.16,127.12,3.25112587]
[1769160820556,9.20652687,127.15,127.1,3.25112587]
[1769160820761,3.36293586,127.15,127.1,3.25112587]
[1769160821761,3.36293586,127.15,127.11,0.05832567]
[1769160822262,0.05904398,127.14,127.11,0.05832567]
[1769160822864,3.42197984,127.14,127.11,0.05832567]
[1769160823054,9.20482117,127.13,127.08,3.25112587]
[1769160823256,3.36293586,127.13,127.08,3.25112587]
[1769160825766,3.36293586,127.13,127.07,2.11450993]
[1769160826061,3.36293586,127.12,127.06,5.3656358]
[1769160826661,0.05074203,127.1,127.06,5.3656358]
[1769160832261,3.41367789,127.1,127.04,10.34482587]
[1769160832461,7.0912,127.09,127.04,3.25112587]
[1769160832670,3.36293586,127.08,127.03,5.3656358]
[1769160832854,7.0912,127.09,127.05,2.11450993]
[1769160833360,10.45413586,127.09,127.05,2.11450993]
[1769160833555,0.05099739,127.08,127.05,2.11450993]
[1769160834660,0.05099739,127.08,127.05,5.3656358]
[1769160834854,10.45333586,127.11,127.06,5.3656358]
[1769160839363,3.36293586,127.13,127.07,5.3656358]
[1769160839763,7.0895,127.12,127.07,5.3656358]
[1769160840166,10.45243586,127.12,127.07,5.3656358]
[1769160840667,10.45173586,127.14,127.09,5.3656358]
[1769160840869,10.45173586,127.14,127.1,2.11450993]
[1769160841769,117.57774623,127.18,127.12,2.11450993]
[1769160841770,3.36293586,127.16,127.12,2.11450993]
[1769160841967,3.36293586,127.16,127.13,2.11450993]
[1769160842263,3.3291227,127.18,127.14,2.11450993]
[1769160842664,3.3291227,127.18,127.12,3.39670055]
[1769160842665,317.2817558,127.2,127.15,2.11450993]
[1769160843069,3.3291227,127.19,127.15,2.11450993]
[1769160843772,10.4149227,127.19,127.14,2.11450993]
[1769160846469,3.3291227,127.19,127.15,2.11450993]
[1769160846874,0.0593188,127.18,127.15,2.11450993]
[1769160847069,0.0593188,127.18,127.16,0.05144202]
[1769160847771,0.0593188,127.18,127.15,2.11450993]
[1769160848075,0.0593188,127.18,127.14,2.11450993]
[1769160849875,0.0593188,127.18,127.13,5.51121048]
[1769160850874,0.0593188,127.18,127.13,3.39670055]
[1769160851074,3.23216601,127.18,127.13,5.51121048]
[1769160852271,3.17284721,127.17,127.12,2.11450993]
[1769160853077,0.04998226,127.16,127.12,2.11450993]
[1769160854077,0.04998226,127.16,127.12,5.41837995]
[1769160854876,0.04998226,127.16,127.13,2.11450993]
[1769160856177,0.04998226,127.16,127.12,5.41837995]
[1769160857481,0.04998226,127.16,127.12,3.30387002]
[1769160857671,0.04998226,127.16,127.12,5.41837995]
[1769160858579,7.0863,127.18,127.13,5.41837995]
[1769160859978,10.25914721,127.18,127.13,3.30387002]
[1769160860672,7.0867,127.17,127.13,3.30387002]
[1769160862581,7.0867,127.17,127.12,2.11450993]
[1769160862975,7.0867,127.17,127.12,2.1137827]
[1769160863171,7.0867,127.17,127.12,5.41765272]
[1769160866975,7.0867,127.17,127.13,3.30387002]
[1769160870688,3.17284721,127.17,127.12,2.1137827]
[1769160870892,2.1137827,127.19,127.11,3.30387002]
[1769160870893,10.26024721,127.16,127.11,3.30387002]
[1769160871092,3.17284721,127.16,127.1,2.1137827]
[1769160871296,10.26134721,127.14,127.09,3.30387002]
[1769160871491,10.31665143,127.14,127.09,3.30387002]
[1769160871692,3.17284721,127.13,127.1,0.05850778]
[1769160872389,3.23285543,127.13,127.1,0.05850778]
[1769160872587,3.23285543,127.13,127.05,3.16475491]
[1769160872787,5.34667729,127.11,127.05,3.16475491]
[1769160872989,3.23289459,127.1,127.05,3.16475491]
[1769160873994,0.0564795,127.09,127.05,3.16475491]
[1769160874194,3.23289459,127.08,127.01,5.27853761]
[1769160874391,3.23289459,127.08,127.02,3.16475491]
[1769160875096,0.05721545,127.06,127.02,3.16475491]
[1769160876799,0.05721545,127.06,127.01,2.1137827]
[1769160877199,7.15031545,127.06,126.97,7.0975]
[1769160877390,7.15031545,127.06,127.0,2.1137827]
[1769160877589,7.0931,127.06,127.0,2.1137827]
[1769160878097,7.0919,127.08,127.02,2.1137827]
[1769160878801,7.0919,127.08,127.03,0.45700674]
[1769160882208,7.0919,127.08,127.03,2.57078944]
[1769160882703,10.33620977,127.1,127.03,2.57078944]
[1769160883013,10.33620977,127.1,127.04,2.57078944]
[1769160885610,3.24520977,127.1,127.04,2.57078944]
[1769160887717,3.275318,127.09,127.02,2.1137827]
[1769160887918,3.275318,127.09,127.02,2.57078944]
[1769160888119,3.275318,127.09,127.03,0.45700674]
[1769160889012,10.366618,127.09,127.03,0.45700674]
[1769160889922,10.366618,127.09,127.04,2.1137827]